lending/lending_fUSD_20250303
["ID","MTS","AMOUNT","RATE_DAILY","PERIOD"]
[355196182,1740994239003,-500.0,0.00014999,2]
[355196183,1740994239012,-500.0,0.00014999,2]
[355196184,1740994239022,-500.0,0.00014999,2]
[355196185,1740994239031,-500.0,0.00014999,2]
[355196186,1740994239041,-500.0,0.00014999,2]
[355196187,1740994239051,-500.0,0.00014999,2]
[355196188,1740994239060,-500.0,0.00014999,2]
[355196189,1740994239070,-500.0,0.00014999,2]
[355196190,1740994239080,-500.0,0.00014999,2]
[355196191,1740994239089,-774.84,0.00014999,2]
[355196192,1740994239098,-500.0,0.00014999,2]
[355196193,1740994239107,-500.0,0.00014999,2]
[355196194,1740994239117,-500.0,0.00014999,2]
[355196195,1740994239126,-500.0,0.00014999,2]
[355196196,1740994239135,-500.0,0.00014999,2]
[355196197,1740994239144,-23369.31,0.00014999,2]
[355196198,1740994239154,-500.820805,0.00014999,7]
[355196199,1740994239166,-500.0,0.00014999,2]
[355196200,1740994239176,-500.0,0.00014999,2]
[355196201,1740994239185,-500.0,0.00014999,2]
[355196202,1740994239194,-500.0,0.00014999,2]
[355196203,1740994239204,-500.0,0.00014999,2]
[355196204,1740994239213,-500.0,0.00014999,2]
[355196205,1740994239222,-500.0,0.00014999,2]
[355196206,1740994239231,-500.0,0.00014999,2]
[355196207,1740994239241,-500.0,0.00014999,2]
[355196208,1740994239250,-513.61892531,0.00014999,2]
[355196209,1740994239259,-507.4032289,0.00014999,2]
[355196210,1740994239269,-500.0,0.00014999,2]
[355196211,1740994239278,-571.5,0.00014999,2]
[355196212,1740994239287,-500.0,0.00014999,2]
[355196213,1740994239296,-500.0,0.00014999,2]
[355196214,1740994239306,-500.0,0.00014999,2]
[355196215,1740994239316,-501.71471523,0.00014999,2]
[355196216,1740994239325,-500.0,0.00014999,2]
[355196217,1740994239335,-502.17380891,0.00014999,2]
[355196218,1740994239344,-503.11265089,0.00014999,2]
[355196219,1740994239354,-500.0,0.00014999,2]
[355196220,1740994239364,-500.0,0.00014999,2]
[355196221,1740994239373,-208.40115389,0.00014999,2]
[355196222,1740994239382,-500.0,0.00014999,2]
[355196223,1740994239391,-500.0,0.00014999,2]
[355196224,1740994239401,-23771.07396967,0.00014999,2]
[355196225,1740994239416,-4655.0074,0.00014999,2]
[355196226,1740994239445,-908.08863033,0.00014999,2]
[355196227,1740994239454,-503.41745161,0.00014999,2]
[355196228,1740994239464,-210.89342341,0.00014999,2]
[355196229,1740994239473,-500.0,0.00014999,2]
[355196230,1740994239483,-500.0,0.00014999,2]
[355196231,1740994239493,-503.49232291,0.00014999,2]
[355196232,1740994239502,-500.0,0.00014999,2]
[355196233,1740994239512,-500.0,0.00014999,2]
[355196234,1740994239521,-500.0,0.00014999,2]
[355196235,1740994239530,-503.17646659,0.00014999,2]
[355196236,1740994239541,-509.0,0.00015,2]
[355196237,1740994239551,-234.62280746,0.00015,3]
[355196238,1740994239560,-5118.48887782,0.00015,3]
[355196239,1740994239573,-18525.18862439,0.00015,3]
[355196241,1740994239818,7144.28,0.00014348,2]
[355196242,1740994239840,-2031.0,0.0001497,2]
[355196243,1740994239850,-502.44020473,0.00014999,2]
[355196244,1740994239859,-43141.56031553,0.00015,3]
[355196245,1740994239902,-717.17805016,0.00015,3]
[355196246,1740994239919,-919.73280698,0.00015,3]
[355196247,1740994240024,-476.453,0.00014999,2]
[355196268,1740994243085,-500.0,0.00014899,2]
[355196269,1740994243096,-23.547,0.00014999,2]
[355196270,1740994243106,-506.34848073,0.00014999,2]
[355196271,1740994243115,-500.0,0.00014999,2]
[355196272,1740994243126,-500.0,0.00014999,2]
[355196273,1740994243136,-136989.75042873,0.00015,3]
[355196279,1740994245720,-1098.40756824,0.00014899,2]
[355196280,1740994245779,-3024.15508779,0.00014899,2]
[355196281,1740994245892,-877.79868781,0.00014899,2]
[355196282,1740994245919,-654.82993885,0.00014899,2]
[355196283,1740994245931,-2417.04045824,0.00014899,2]
[355196286,1740994257645,500.0,0.00014999,120]
[355196287,1740994257842,169.71,0.00014659,2]
[355196288,1740994257873,511.608325,0.00015273,120]
[355196289,1740994269696,2751.0,0.00014196,2]
[355196290,1740994294306,150.0,0.00014196,7]
[355196291,1740994297866,222.522192,0.00014823,2]
[355196292,1740994302402,900.0,0.000148,2]
[355196293,1740994305148,15524.0605,0.000148,2]
[355196294,1740994337812,405.0600491,0.0001479,2]
[355196295,1740994338921,29140.487,0.00014799,2]
[355196296,1740994365081,184.55,0.00014702,2]
[355196297,1740994381486,692.07,0.00014184,2]
[355196298,1740994381641,556.16,0.00014184,2]
[355196299,1740994381876,556.16,0.00014266,2]
[355196300,1740994382072,556.16,0.00014348,2]
[355196301,1740994382291,556.16,0.0001443,2]
[355196302,1740994382502,556.16,0.00014512,2]
[355196303,1740994382719,556.16,0.00014594,2]
[355196304,1740994382935,556.16,0.00014676,2]
[355196305,1740994383175,556.16,0.00014758,2]
[355196306,1740994383380,556.16,0.00014841,2]
[355196307,1740994433527,1723.84,0.00014107,2]
[355196308,1740994438922,3104.32,0.00014107,2]
[355196309,1740994455141,2000.0,0.00014136,2]
[355196310,1740994456434,49634.79,0.00014121,2]
[355196311,1740994463843,4000.0,0.0001485,2]
[355196312,1740994466520,3150.99,0.00014043,2]
[355196313,1740994467182,4769.33,0.00014121,2]
[355196314,1740994481767,3887.48,0.00014121,2]
[355196315,1740994487571,-200.0,0.0001488,2]
[355196316,1740994487592,-6381.17098231,0.00014889,2]
[355196317,1740994487613,-550.0,0.00014899,2]
[355196318,1740994487637,-500.0,0.00014899,2]
[355196319,1740994487661,-500.0,0.00014899,2]
[355196320,1740994487682,-394.47273822,0.00014899,2]
[355196321,1740994487704,-500.0,0.00014899,2]
[355196322,1740994487727,-500.0,0.00014899,2]
[355196323,1740994487748,-500.0,0.00014899,2]
[355196324,1740994487769,-500.0,0.00014899,2]
[355196325,1740994487790,-500.0,0.00014899,2]
[355196326,1740994487988,-500.0,0.00014899,2]
[355196327,1740994488011,-500.0,0.00014899,2]
[355196328,1740994488031,-500.0,0.00014899,2]
[355196329,1740994488053,-500.0,0.00014899,2]
[355196330,1740994488075,-500.0,0.00014899,2]
[355196331,1740994488100,-500.0,0.00014899,2]
[355196332,1740994488121,-500.0,0.00014899,2]
[355196333,1740994488144,-500.0,0.00014899,2]
[355196334,1740994488166,-500.0,0.00014899,2]
[355196335,1740994488188,-7096.3,0.00014899,2]
[355196336,1740994488209,-500.0,0.00014899,2]
[355196337,1740994488231,-10257.05627947,0.00014899,2]
[355196338,1740994540522,6232.42,0.00014129,2]
[355196339,1740994544697,49913.8,0.00014129,2]
[355196340,1740994554853,2403.77,0.00012223,2]
[355196341,1740994555086,2403.77,0.00014487,2]
[355196342,1740994565139,182.93066866,0.00014799,2]
[355196343,1740994568311,250.0,0.00014075,2]
[355196344,1740994597904,9732.639,0.00014799,2]
[355196345,1740994644027,834.72,0.00014799,2]
[355196346,1740994650242,7318.5728,0.00014799,2]
[355196347,1740994668195,877.25,0.00013986,2]
[355196348,1740994668612,877.25,0.00014685,2]
[355196349,1740994684566,1389.71,0.00013997,2]
[355196351,1740994697539,931.9988391,0.00014799,2]
[355196352,1740994699038,163.33,0.00013986,2]
[355196353,1740994702559,931.99883903,0.0001481,2]
[355196355,1740994707555,931.99883903,0.00014821,2]
[355196356,1740994712530,931.99883903,0.00014833,2]
[355196358,1740994717523,931.99883903,0.00014844,2]
[355196362,1740994776561,4000.0,0.0001485,2]
[355196363,1740994807246,286.0,0.0001485,3]
[355196364,1740994858464,1000.0,0.00013941,2]
[355196365,1740994896235,1318.0,0.000148,2]
[355196366,1740994897272,318.1165487,0.00014799,2]
[355196367,1740994927973,2500.0,0.00014799,2]
[355196368,1740994964998,300.0,0.0002,120]
[355196369,1740995051703,400.0,0.00014,2]
[355196370,1740995063049,264.71803845,0.00014799,2]
[355196371,1740995068008,264.71803836,0.0001481,2]
[355196372,1740995069143,400.0,0.0002,120]
[355196373,1740995073014,264.71803836,0.00014821,2]
[355196374,1740995078035,264.71803836,0.00014833,2]
[355196375,1740995083018,264.71803836,0.00014844,2]
[355196376,1740995098781,1662.42,0.00014024,2]
[355196377,1740995102729,150.0,0.00014849,2]
[355196378,1740995107296,272.0,0.0001485,3]
[355196379,1740995124637,3087.75401,0.0001485,2]
[355196380,1740995129347,650.96,0.00014036,2]
[355196382,1740995287959,465.99941956,0.00014798,2]
[355196383,1740995292958,465.99941951,0.00014809,2]
[355196384,1740995297921,465.99941951,0.00014821,2]
[355196385,1740995302935,465.99941951,0.00014832,2]
[355196386,1740995307952,465.99941951,0.00014843,2]
[355196387,1740995319046,150.0,0.0001402,7]
[355196388,1740995357382,962.77,0.00014145,2]
[355196390,1740995406823,258.0,0.0001485,3]
[355196391,1740995422650,1015.86,0.000148,2]
[355196400,1740995431896,-295.95831041,0.00014855,2]
[355196418,1740995432517,-170.0411091,0.00014855,2]
[355196419,1740995432527,-264.71803836,0.00014855,2]
[355196420,1740995432537,-550.0,0.00014858,2]
[355196422,1740995432546,-150.0,0.00014858,2]
[355196423,1740995432556,-465.99941951,0.00014866,2]
[355196424,1740995432565,-12322.1924869,0.00014866,2]
[355196434,1740995440167,-451.72689568,0.00014866,2]
[355196435,1740995440176,-465.99941951,0.00014877,2]
[355196436,1740995440185,-263.10333479,0.00014878,2]
[355196437,1740995440330,-1.61470357,0.00014878,2]
[355196438,1740995440340,-2585.34663643,0.00014888,2]
[355196439,1740995440387,-421.84031499,0.00014888,2]
[355196440,1740995440400,-1581.32304858,0.00014888,2]
[355196441,1740995440409,-465.99941951,0.00014889,2]
[355196442,1740995440419,-264.71803836,0.00014889,2]
[355196443,1740995440428,-2295.36286957,0.00014897,2]
[355196475,1740995443073,-8691.69763419,0.00014897,2]
[355196476,1740995443082,-500.0,0.00014897,2]
[355196477,1740995443092,-500.0,0.00014897,2]
[355196478,1740995443102,-500.0,0.00014897,2]
[355196479,1740995443111,-500.0,0.00014897,2]
[355196480,1740995443121,-780.7,0.00014897,2]
[355196481,1740995443130,-500.0,0.00014897,2]
[355196482,1740995443140,-384.48562847,0.00014897,2]
[355196483,1740995443149,-837.72,0.00014897,2]
[355196484,1740995443158,-500.0,0.00014897,2]
[355196485,1740995443167,-883.97,0.00014897,2]
[355196486,1740995443177,-500.0,0.00014897,2]
[355196487,1740995443187,-500.0,0.00014897,2]
[355196489,1740995443197,-730.76,0.00014897,2]
[355196491,1740995443206,-500.0,0.00014897,2]
[355196493,1740995443216,-500.0,0.00014897,2]
[355196494,1740995443225,-500.0,0.00014897,2]
[355196495,1740995443235,-500.0,0.00014897,2]
[355196496,1740995443246,-654.29,0.00014897,2]
[355196498,1740995443255,-14568.69,0.00014897,2]
[355196500,1740995443266,-500.0,0.00014897,2]
[355196502,1740995443275,-500.0,0.00014897,2]
[355196504,1740995443284,-515.63,0.00014897,2]
[355196506,1740995443293,-533.74,0.00014897,2]
[355196508,1740995443302,-500.0,0.00014897,2]
[355196510,1740995443311,-500.0,0.00014897,2]
[355196513,1740995443320,-676.62,0.00014897,2]
[355196515,1740995443329,-500.0,0.00014897,2]
[355196517,1740995443339,-500.0,0.00014897,2]
[355196527,1740995443517,-500.0,0.00014897,2]
[355196528,1740995443533,-10998.52,0.00014897,2]
[355196529,1740995443543,-500.0,0.00014897,2]
[355196530,1740995443553,-500.0,0.00014897,2]
[355196531,1740995443562,-500.0,0.00014897,2]
[355196532,1740995443572,-500.0,0.00014897,2]
[355196533,1740995443582,-500.0,0.00014897,2]
[355196534,1740995443591,-593.99,0.00014897,2]
[355196535,1740995443601,-614.51,0.00014897,2]
[355196536,1740995443611,-500.0,0.00014897,2]
[355196537,1740995443620,-500.0,0.00014897,2]
[355196538,1740995443630,-621.34,0.00014897,2]
[355196539,1740995443639,-500.0,0.00014897,2]
[355196540,1740995443649,-500.0,0.00014897,2]
[355196541,1740995443659,-500.0,0.00014897,2]
[355196542,1740995443668,-7765.572,0.00014898,2]
[355196543,1740995443678,-214.26,0.00014898,2]
[355196544,1740995443688,-349.699873,0.00014898,2]
[355196545,1740995443697,-595.46513,0.00014898,2]
[355196546,1740995443706,-156.631809,0.00014898,2]
[355196547,1740995443715,-150.862109,0.00014898,2]
[355196548,1740995443725,-500.0,0.00014898,2]
[355196549,1740995443735,-500.0,0.00014898,2]
[355196550,1740995443746,-500.0,0.00014898,2]
[355196551,1740995443756,-500.0,0.00014898,2]
[355196552,1740995443766,-500.0,0.00014898,2]
[355196553,1740995443775,-500.0,0.00014898,2]
[355196554,1740995443784,-500.0,0.00014898,2]
[355196555,1740995443794,-500.0,0.00014898,2]
[355196556,1740995443803,-500.0,0.00014898,2]
[355196557,1740995443812,-500.0,0.00014898,2]
[355196558,1740995443822,-500.0,0.00014898,2]
[355196559,1740995443832,-500.0,0.00014898,2]
[355196560,1740995443841,-500.0,0.00014898,2]
[355196561,1740995443850,-500.0,0.00014898,2]
[355196562,1740995443859,-500.0,0.00014898,2]
[355196563,1740995443869,-500.0,0.00014898,2]
[355196564,1740995443878,-500.0,0.00014898,2]
[355196566,1740995443890,-500.0,0.00014898,2]
[355196568,1740995443898,-500.0,0.00014898,2]
[355196569,1740995443907,-500.0,0.00014898,2]
[355196571,1740995443916,-500.0,0.00014898,2]
[355196573,1740995443927,-500.0,0.00014898,2]
[355196575,1740995443937,-500.0,0.00014898,2]
[355196577,1740995443947,-196.68167627,0.00014898,2]
[355196579,1740995443957,-327.72,0.00014898,2]
[355196581,1740995443966,-500.0,0.00014898,2]
[355196583,1740995443976,-500.0,0.00014898,2]
[355196585,1740995443986,-500.0,0.00014898,2]
[355196587,1740995443996,-500.0,0.00014898,2]
[355196588,1740995444006,-500.0,0.00014898,2]
[355196589,1740995444015,-500.0,0.00014898,2]
[355196590,1740995444027,-500.0,0.00014898,2]
[355196591,1740995444037,-500.0,0.00014898,2]
[355196592,1740995444047,-500.0,0.00014898,2]
[355196593,1740995444056,-500.0,0.00014898,2]
[355196594,1740995444065,-526.46878907,0.00014898,2]
[355196595,1740995444074,-500.0,0.00014898,2]
[355196596,1740995444083,-500.0,0.00014898,2]
[355196597,1740995444093,-500.0,0.00014898,2]
[355196598,1740995444102,-500.0,0.00014898,2]
[355196599,1740995444112,-500.0,0.00014898,2]
[355196600,1740995444122,-500.0,0.00014898,2]
[355196601,1740995444131,-500.0,0.00014898,2]
[355196602,1740995444141,-500.0,0.00014898,2]
[355196603,1740995444151,-339.18,0.00014898,2]
[355196604,1740995444161,-500.0,0.00014898,2]
[355196605,1740995444171,-500.0,0.00014898,2]
[355196606,1740995444181,-262.10357375,0.00014898,2]
[355196607,1740995444191,-500.0,0.00014898,2]
[355196608,1740995444200,-500.0,0.00014898,2]
[355196609,1740995444210,-500.0,0.00014898,2]
[355196610,1740995444220,-500.0,0.00014898,2]
[355196611,1740995444230,-500.0,0.00014898,2]
[355196612,1740995444240,-500.0,0.00014898,2]
[355196613,1740995444249,-500.0,0.00014898,2]
[355196614,1740995444259,-500.0,0.00014898,2]
[355196615,1740995444269,-500.0,0.00014898,2]
[355196616,1740995444278,-500.0,0.00014898,2]
[355196617,1740995444288,-500.0,0.00014898,2]
[355196618,1740995444297,-500.0,0.00014898,2]
[355196619,1740995444307,-500.0,0.00014898,2]
[355196620,1740995444317,-500.0,0.00014898,2]
[355196621,1740995444327,-500.0,0.00014898,2]
[355196622,1740995444337,-500.0,0.00014898,2]
[355196623,1740995444347,-500.0,0.00014898,2]
[355196624,1740995444356,-500.0,0.00014898,2]
[355196625,1740995444365,-500.0,0.00014898,2]
[355196626,1740995444375,-500.0,0.00014898,2]
[355196627,1740995444384,-500.0,0.00014898,2]
[355196628,1740995444394,-500.0,0.00014898,2]
[355196629,1740995444404,-500.0,0.00014898,2]
[355196630,1740995444413,-500.0,0.00014898,2]
[355196631,1740995444422,-500.0,0.00014898,2]
[355196632,1740995444431,-500.0,0.00014898,2]
[355196633,1740995444441,-500.0,0.00014898,2]
[355196634,1740995444451,-500.0,0.00014898,2]
[355196635,1740995444460,-500.0,0.00014898,2]
[355196636,1740995444469,-500.0,0.00014898,2]
[355196637,1740995444479,-500.0,0.00014898,2]
[355196638,1740995444488,-500.0,0.00014898,2]
[355196639,1740995444499,-500.0,0.00014898,2]
[355196640,1740995444509,-500.0,0.00014898,2]
[355196641,1740995444519,-220.55185842,0.00014898,2]
[355196642,1740995444528,-500.0,0.00014898,2]
[355196643,1740995444537,-500.0,0.00014898,2]
[355196644,1740995444547,-500.0,0.00014898,2]
[355196645,1740995444556,-500.0,0.00014898,2]
[355196646,1740995444566,-500.0,0.00014898,2]
[355196647,1740995444575,-500.0,0.00014898,2]
[355196648,1740995444584,-500.0,0.00014898,2]
[355196649,1740995444593,-500.0,0.00014898,2]
[355196650,1740995444603,-500.0,0.00014898,2]
[355196651,1740995444612,-6800.62,0.00014898,2]
[355196652,1740995444623,-500.0,0.00014898,2]
[355196653,1740995444632,-500.0,0.00014898,2]
[355196654,1740995444642,-173.96434946,0.00014898,2]
[355196655,1740995444651,-500.0,0.00014898,2]
[355196656,1740995444660,-153.28301475,0.00014898,2]
[355196657,1740995444670,-657.83,0.00014898,2]
[355196658,1740995444679,-500.0,0.00014898,2]
[355196659,1740995444689,-495.48167682,0.00014898,2]
[355196660,1740995444698,-254.53649122,0.00014898,2]
[355196661,1740995444707,-500.0,0.00014898,2]
[355196662,1740995444716,-826.13,0.00014898,2]
[355196663,1740995444726,-467.8896553,0.00014898,2]
[355196664,1740995444735,-500.0,0.00014898,2]
[355196665,1740995444746,-500.0,0.00014898,2]
[355196666,1740995444755,-8049.55,0.00014898,2]
[355196667,1740995444765,-823.83,0.00014898,2]
[355196668,1740995444774,-500.0,0.00014898,2]
[355196669,1740995444783,-496.53990853,0.00014898,2]
[355196670,1740995444792,-500.0,0.00014898,2]
[355196671,1740995444802,-500.0,0.00014898,2]
[355196672,1740995444811,-665.69,0.00014898,2]
[355196673,1740995444820,-1014.96,0.00014898,2]
[355196674,1740995444829,-553.08,0.00014898,2]
[355196675,1740995444838,-500.0,0.00014898,2]
[355196676,1740995444847,-500.0,0.00014898,2]
[355196677,1740995444856,-6977.11,0.00014898,2]
[355196678,1740995444865,-500.0,0.00014898,2]
[355196679,1740995444874,-871.76,0.00014898,2]
[355196680,1740995444883,-500.0,0.00014898,2]
[355196681,1740995444892,-500.0,0.00014898,2]
[355196682,1740995444902,-1564.89,0.00014898,2]
[355196683,1740995444911,-500.0,0.00014898,2]
[355196684,1740995444920,-500.0,0.00014898,2]
[355196685,1740995444929,-500.0,0.00014898,2]
[355196686,1740995444938,-500.0,0.00014898,2]
[355196687,1740995444948,-500.0,0.00014898,2]
[355196688,1740995444959,-584.87,0.00014898,2]
[355196689,1740995444969,-500.0,0.00014898,2]
[355196690,1740995444978,-22937.17,0.00014898,2]
[355196691,1740995444990,-500.0,0.00014898,2]
[355196692,1740995444999,-500.0,0.00014898,2]
[355196693,1740995445008,-500.0,0.00014898,2]
[355196694,1740995445017,-500.0,0.00014898,2]
[355196695,1740995445027,-500.0,0.00014898,2]
[355196696,1740995445036,-500.0,0.00014898,2]
[355196697,1740995445045,-500.0,0.00014898,2]
[355196698,1740995445054,-1321.03,0.00014898,2]
[355196699,1740995445063,-500.0,0.00014898,2]
[355196700,1740995445072,-500.0,0.00014898,2]
[355196701,1740995445081,-500.0,0.00014898,2]
[355196702,1740995445092,-500.0,0.00014898,2]
[355196703,1740995445102,-500.0,0.00014898,2]
[355196704,1740995445111,-500.0,0.00014898,2]
[355196705,1740995445120,-500.0,0.00014898,2]
[355196706,1740995445130,-500.0,0.00014898,2]
[355196707,1740995445139,-281.38588604,0.00014898,2]
[355196708,1740995445148,-9681.07,0.00014898,2]
[355196709,1740995445158,-500.0,0.00014898,2]
[355196710,1740995445168,-500.0,0.00014898,2]
[355196711,1740995445178,-1032.27,0.00014898,2]
[355196712,1740995445188,-500.0,0.00014898,2]
[355196713,1740995445197,-500.0,0.00014898,2]
[355196714,1740995445208,-606.59,0.00014898,2]
[355196715,1740995445218,-500.0,0.00014898,2]
[355196716,1740995445227,-500.0,0.00014898,2]
[355196717,1740995445236,-500.0,0.00014898,2]
[355196718,1740995445249,-500.0,0.00014898,2]
[355196719,1740995445258,-500.0,0.00014898,2]
[355196720,1740995445268,-500.0,0.00014898,2]
[355196721,1740995445277,-500.0,0.00014898,2]
[355196722,1740995445287,-796.19,0.00014898,2]
[355196723,1740995445296,-6335.6,0.00014898,2]
[355196724,1740995445306,-500.0,0.00014898,2]
[355196725,1740995445316,-710.69,0.00014898,2]
[355196726,1740995445325,-500.0,0.00014898,2]
[355196727,1740995445335,-638.49,0.00014898,2]
[355196728,1740995445344,-500.0,0.00014898,2]
[355196729,1740995445353,-331.13855383,0.00014898,2]
[355196730,1740995445362,-500.0,0.00014898,2]
[355196731,1740995445371,-500.0,0.00014898,2]
[355196732,1740995445381,-500.0,0.00014898,2]
[355196733,1740995445390,-500.0,0.00014898,2]
[355196734,1740995445399,-500.0,0.00014898,2]
[355196735,1740995445408,-500.0,0.00014898,2]
[355196736,1740995445417,-500.0,0.00014898,2]
[355196737,1740995445427,-500.0,0.00014898,2]
[355196738,1740995445436,-549.94,0.00014898,2]
[355196739,1740995445445,-500.0,0.00014898,2]
[355196740,1740995445454,-646.9,0.00014898,2]
[355196741,1740995445463,-500.0,0.00014898,2]
[355196742,1740995445472,-500.0,0.00014898,2]
[355196743,1740995445481,-500.0,0.00014898,2]
[355196744,1740995445491,-500.0,0.00014898,2]
[355196745,1740995445499,-500.0,0.00014898,2]
[355196746,1740995445508,-500.0,0.00014898,2]
[355196747,1740995445518,-500.0,0.00014898,2]
[355196748,1740995445528,-500.0,0.00014898,2]
[355196749,1740995445537,-500.0,0.00014898,2]
[355196750,1740995445546,-500.0,0.00014898,2]
[355196751,1740995445555,-500.0,0.00014898,2]
[355196752,1740995445564,-15200.47,0.00014898,2]
[355196753,1740995445573,-500.0,0.00014898,2]
[355196754,1740995445583,-500.0,0.00014898,2]
[355196755,1740995445593,-860.93,0.00014898,2]
[355196756,1740995445602,-500.0,0.00014898,2]
[355196757,1740995445612,-220.4315403,0.00014898,2]
[355196758,1740995445621,-500.0,0.00014898,2]
[355196759,1740995445630,-500.0,0.00014898,2]
[355196760,1740995445641,-500.0,0.00014898,2]
[355196761,1740995445651,-500.0,0.00014898,2]
[355196762,1740995445660,-500.0,0.00014898,2]
[355196764,1740995445670,-23001.65,0.00014898,2]
[355196765,1740995445679,-500.0,0.00014898,2]
[355196767,1740995445689,-500.0,0.00014898,2]
[355196769,1740995445699,-500.0,0.00014898,2]
[355196771,1740995445708,-500.0,0.00014898,2]
[355196773,1740995445718,-500.0,0.00014898,2]
[355196775,1740995445728,-500.0,0.00014898,2]
[355196777,1740995445738,-500.0,0.00014898,2]
[355196779,1740995445752,-16520.42,0.00014898,2]
[355196781,1740995445761,-500.0,0.00014898,2]
[355196785,1740995445772,-500.0,0.00014898,2]
[355196787,1740995445781,-500.0,0.00014898,2]
[355196788,1740995445791,-500.0,0.00014898,2]
[355196789,1740995445800,-500.0,0.00014898,2]
[355196790,1740995445811,-500.0,0.00014898,2]
[355196791,1740995445820,-500.0,0.00014898,2]
[355196792,1740995445830,-500.0,0.00014898,2]
[355196793,1740995445840,-653.83,0.00014898,2]
[355196794,1740995445850,-320.17919334,0.00014898,2]
[355196795,1740995445859,-500.0,0.00014898,2]
[355196796,1740995445869,-500.0,0.00014898,2]
[355196797,1740995445879,-500.0,0.00014898,2]
[355196798,1740995445888,-500.0,0.00014898,2]
[355196799,1740995445898,-500.0,0.00014898,2]
[355196800,1740995445907,-500.0,0.00014898,2]
[355196801,1740995445917,-511.44715032,0.00014898,2]
[355196802,1740995445927,-500.0,0.00014898,2]
[355196803,1740995445937,-614.68,0.00014898,2]
[355196804,1740995445950,-642.50653322,0.00014898,2]
[355196805,1740995445960,-510.46523425,0.00014898,2]
[355196806,1740995445969,-28414.2,0.00014898,2]
[355196807,1740995445979,-503.1494715,0.00014898,2]
[355196808,1740995445993,-523.90273627,0.00014898,2]
[355196809,1740995446002,-504.01130486,0.00014898,2]
[355196810,1740995446012,-500.0,0.00014898,2]
[355196811,1740995446023,-500.0,0.00014898,2]
[355196812,1740995446032,-500.0,0.00014898,2]
[355196813,1740995446042,-500.0,0.00014898,2]
[355196814,1740995446052,-500.0,0.00014898,2]
[355196815,1740995446061,-500.0,0.00014898,2]
[355196816,1740995446069,-365.62662038,0.00014898,2]
[355196817,1740995446078,-500.0,0.00014898,2]
[355196818,1740995446087,-500.0,0.00014898,2]
[355196819,1740995446096,-588.93,0.00014898,2]
[355196820,1740995446105,-500.0,0.00014898,2]
[355196821,1740995446114,-500.0,0.00014898,2]
[355196822,1740995446123,-500.0,0.00014898,2]
[355196823,1740995446133,-296.44124529,0.00014898,2]
[355196824,1740995446142,-643.5,0.00014898,2]
[355196825,1740995446151,-229.69308774,0.00014898,2]
[355196826,1740995446160,-7516.63,0.00014898,2]
[355196827,1740995446169,-305.19336176,0.00014898,2]
[355196828,1740995446179,-500.0,0.00014898,2]
[355196829,1740995446188,-1000.0,0.00014898,2]
[355196830,1740995446198,-500.0,0.00014898,2]